bitfinex/quotes_ETHUSD_20240925
["timestamp","ask_amount","ask_price","bid_price","bid_amount"]
[1727297524961,2.03328737,2584.7,2584.2,4.65702]
[1727297525168,5.90223737,2584.7,2584.3,3.86951]
[1727297525372,4.6231,2584.6,2584.0,4.68605]
[1727297525543,0.754,2584.4,2584.0,3.86985]
[1727297525743,0.754,2584.4,2584.1,3.86981]
[1727297526153,4.62338,2584.4,2584.0,4.94393657]
[1727297526538,4.62338,2584.4,2584.0,3.86996]
[1727297529075,4.63716,2584.3,2583.8,3.87013]
[1727297529280,0.7797,2584.2,2583.8,3.87013]
[1727297529641,0.7797,2584.2,2583.8,7.74033]
[1727297530154,0.7797,2584.2,2583.8,3.87013]
[1727297530375,0.7797,2584.2,2583.9,3.87008]
[1727297530548,0.7797,2584.2,2583.8,3.87013]
[1727297530549,0.7797,2584.2,2584.0,3.86995]
[1727297531353,0.7797,2584.2,2583.9,3.8701]
[1727297532557,0.7797,2584.2,2583.9,3.87005]
[1727297532878,0.7797,2584.2,2583.9,7.74007]
[1727297533282,0.7797,2584.2,2584.0,3.86994]
[1727297540459,0.7797,2584.2,2584.0,3.86986]
[1727297540867,0.7848,2584.4,2584.1,3.86981]
[1727297541061,0.7848,2584.4,2584.2,3.86955]
[1727297544407,0.7848,2584.4,2584.0,3.86996]
[1727297544560,0.7848,2584.4,2584.1,3.8698]
[1727297545575,0.7848,2584.4,2584.0,3.86996]
[1727297545877,0.7848,2584.4,2584.0,3.86989]
[1727297546185,0.7848,2584.4,2584.1,3.86975]
[1727297550876,0.7848,2584.4,2584.0,3.86994]
[1727297551391,0.7848,2584.4,2584.1,3.8698]
[1727297555981,0.7848,2584.4,2584.0,3.86994]
[1727297556203,0.7848,2584.4,2584.0,3.86989]
[1727297557628,0.7848,2584.4,2584.1,3.86981]
[1727297562096,0.7848,2584.4,2584.0,3.86989]
[1727297562603,0.7848,2584.4,2584.0,7.73979]
[1727297562941,0.7848,2584.4,2584.0,3.86989]
[1727297563099,4.65419,2584.4,2584.0,3.86989]
[1727297565303,0.7848,2584.4,2584.0,3.86989]
[1727297565630,0.7848,2584.4,2584.0,7.73979]
[1727297567636,0.7848,2584.4,2584.1,3.86971]
[1727297568129,5.90251048,2584.5,2584.1,3.86971]
[1727297570098,2.03327048,2584.4,2584.1,3.86971]
[1727297570517,2.03432629,2584.4,2584.1,3.86971]
[1727297571108,2.03432629,2584.4,2584.0,3.86989]
[1727297571436,0.7529,2584.3,2584.0,3.86989]
[1727297571929,0.7529,2584.3,2584.0,7.73977]
[1727297572150,0.7529,2584.3,2584.0,3.86988]
[1727297573305,2.78722629,2584.3,2584.0,3.86988]
[1727297573692,0.7863,2584.2,2583.6,0.81124992]
[1727297573894,1.69043468,2583.9,2583.5,3.8706]
[1727297574132,3.87008,2584.0,2583.2,1.62032224]
[1727297574133,5.56091468,2583.7,2583.2,4.68233992]
[1727297574303,0.7863,2583.6,2583.2,3.87109]
[1727297577557,5.93767008,2583.6,2583.1,3.87121]
[1727297579248,5.93767008,2583.6,2583.1,7.74243]
[1727297580082,5.93767008,2583.6,2583.1,3.87121]
[1727297580241,5.93767008,2583.6,2583.1,7.74244]
[1727297580437,5.93767008,2583.6,2583.1,3.87121]
[1727297580838,5.93767008,2583.6,2583.1,7.74244]
[1727297581877,4.65693,2583.6,2583.2,3.87115]
[1727297582386,4.65693,2583.6,2583.1,7.74244]
[1727297584458,4.65693,2583.6,2583.2,3.87116]
[1727297586039,0.7863,2583.6,2583.3,3.87101]
[1727297586262,0.7528,2583.8,2583.3,4.66641]
[1727297586588,0.7528,2583.8,2583.4,3.87082]
[1727297586985,3.87007,2584.0,2583.5,7.74135]
[1727297587290,3.87007,2584.0,2583.5,3.87062]
[1727297587291,4.62287,2584.0,2583.5,3.87062]
[1727297587589,4.62287,2584.0,2583.4,4.724583]
[1727297587757,4.62287,2584.0,2583.5,3.8707]
[1727297587959,4.62287,2584.0,2583.5,4.97881177]
[1727297592273,8.49293,2584.0,2583.5,4.97881177]
[1727297594906,8.49293,2584.0,2583.5,1.10811177]
[1727297595411,4.62286,2584.0,2583.5,1.10811177]
[1727297595605,3.87012,2583.9,2583.5,1.10811177]
[1727297596883,3.87027,2583.8,2583.5,1.10811177]
[1727297597205,3.87027,2583.8,2583.4,3.87077]
[1727297597551,4.62286,2584.0,2583.4,3.87077]
[1727297597804,3.87014,2583.9,2583.4,3.87077]
[1727297600206,4.62283,2584.0,2583.5,3.87063]
[1727297600529,4.62283,2584.0,2583.6,4.64469]
[1727297600530,0.7528,2584.0,2583.6,4.64469]
[1727297600723,0.7528,2584.0,2583.6,5.41902]
[1727297601747,0.7528,2584.0,2583.7,3.87034]
[1727297601887,0.7855,2584.2,2583.8,3.87024]
[1727297602087,4.65517,2584.2,2583.8,3.87024]
[1727297602382,0.7855,2584.2,2583.8,3.87024]
[1727297603604,0.7855,2584.2,2583.9,3.87011]
[1727297609211,0.7855,2584.2,2583.6,1.54854]
[1727297609543,4.65524,2584.2,2583.7,3.8704]
[1727297610437,4.65524,2584.2,2583.8,3.87025]
[1727297612588,4.65524,2584.2,2583.7,3.87041]
[1727297612737,0.465524,2584.1,2583.7,3.87041]
[1727297612919,4.65524,2584.2,2583.7,3.87041]
[1727297613239,3.86974,2584.2,2583.7,3.87041]
[1727297613439,0.8239,2584.1,2583.7,3.87041]
[1727297613623,4.69374,2584.1,2583.7,3.87041]
[1727297614536,0.8239,2584.1,2583.7,3.87041]
[1727297615798,0.8239,2584.1,2583.7,7.74076]
[1727297617445,0.8239,2584.1,2583.8,0.96968278]
[1727297617639,0.8239,2584.1,2583.7,7.74076]
[1727297618032,0.8239,2584.1,2583.8,0.9696694]
[1727297618231,0.8239,2584.1,2583.7,7.74076]
[1727297618643,0.8239,2584.1,2583.5,3.87056]
[1727297618644,0.777,2583.9,2583.5,3.87056]
[1727297618954,0.777,2583.9,2583.7,3.87041]
[1727297619455,0.777,2583.9,2583.8,3.87026]
[1727297621936,0.777,2584.1,2583.8,3.87026]
[1727297627565,0.7778,2584.3,2584.0,3.86996]
[1727297630668,0.7778,2584.3,2584.0,3.86988]
[1727297630878,4.64708,2584.5,2584.0,8.55566]
[1727297631183,4.64708,2584.5,2584.0,4.68578]
[1727297631410,0.7778,2584.5,2584.1,3.86974]
[1727297637057,0.7778,2584.5,2584.2,3.86965]
[1727297637291,2.03279667,2584.6,2584.2,3.86957]
[1727297637463,2.03279667,2584.6,2584.2,7.73917]
[1727297637676,2.03279667,2584.6,2584.2,3.86957]
[1727297638105,5.90187667,2584.6,2584.2,3.86957]
[1727297638339,2.03279667,2584.6,2584.2,3.86957]
[1727297638464,2.0324085,2584.6,2584.4,3.86923]
[1727297638664,3.86879,2584.8,2584.4,3.86923]
[1727297640806,0.7582,2584.4,2584.0,3.86995]
[1727297641011,0.63179247,2584.3,2583.9,4.67077]
[1727297641303,1.69043468,2584.3,2583.8,0.81124992]
[1727297641490,5.56035468,2584.1,2583.8,0.81124992]
[1727297641695,1.01882947,2584.0,2583.8,0.81124992]
[1727297642002,5.56035468,2584.1,2583.8,0.81124992]
[1727297645501,3.86992,2584.1,2583.8,0.81124992]
[1727297645720,4.62794,2584.2,2583.8,0.81124992]
[1727297646377,0.7582,2584.2,2583.8,4.68140992]
[1727297646818,3.0,2585.1,2583.9,0.7888]
[1727297646819,1.69043468,2584.5,2583.9,0.7888]
[1727297647111,0.7752,2584.6,2584.3,3.86948]
[1727297647317,0.7752,2584.9,2584.5,3.86922]
[1727297648104,0.0369732,2585.0,2584.6,0.7888]
[1727297648311,0.0369732,2585.0,2584.7,3.86891]
[1727297653873,0.0369732,2585.0,2584.6,4.65785]
[1727297656269,0.0369732,2585.0,2584.6,5.510547]
[1727297658630,0.0369732,2585.0,2584.6,4.65785]
[1727297660521,0.0369732,2585.0,2584.7,3.8689]
[1727297662488,0.0369732,2585.0,2584.9,3.86862]
[1727297662708,0.0369732,2585.0,2584.9,4.69532]
[1727297663016,0.0369732,2585.0,2584.9,6.38575468]
[1727297663218,0.0369732,2585.0,2584.9,7.41120715]
[1727297663594,0.0369732,2585.0,2584.9,5.72077247]
[1727297674743,0.0369732,2585.0,2584.9,4.89407247]
[1727297676047,0.8534732,2585.0,2584.8,3.86877]
[1727297676345,0.8534732,2585.0,2584.8,7.73744]
[1727297676851,0.8534732,2585.0,2584.8,3.86867]
[1727297677141,0.8534732,2585.0,2584.8,7.73736]
[1727297680627,0.0369732,2585.0,2584.9,3.86862]
[1727297728610,0.7857,2584.9,2584.7,7.73772]
[1727297728777,0.7857,2584.9,2584.8,3.86877]
[1727297728980,0.7857,2584.9,2584.5,0.32423412]
[1727297728981,4.75104782,2584.9,2584.5,0.32423412]
[1727297729327,2.0352322,2584.8,2584.4,3.86922]
[1727297729625,2.8163322,2584.6,2584.2,3.86957]
[1727297729830,2.8163322,2584.6,2584.1,3.86972]
[1727297729831,4.65019,2584.6,2584.1,3.86972]
[1727297729982,2.03534649,2584.5,2584.1,3.86972]
[1727297730325,2.81644649,2584.6,2584.1,3.86972]
[1727297730526,2.03534649,2584.5,2584.1,3.86972]
[1727297731210,4.08162182,2584.6,2584.1,3.86972]
[1727297731422,4.08162182,2584.6,2584.2,3.86965]
[1727297732318,0.96409865,2584.5,2584.2,3.86965]
[1727297733599,0.96409865,2584.5,2584.2,7.7393]
[1727297734988,0.7972,2584.4,2584.0,3.86983]
[1727297735240,0.09674417,2584.3,2584.0,3.86983]
[1727297735522,0.7972,2584.4,2584.0,3.86983]
[1727297735690,0.73210333,2584.3,2584.0,3.86983]
[1727297736611,0.73210333,2584.3,2584.0,7.73972]
[1727297737002,0.7728,2584.2,2584.0,3.86983]
[1727297738213,0.7728,2584.2,2584.1,3.86981]
[1727297744349,0.8019,2584.5,2584.1,3.86981]
[1727297744537,1.82494247,2584.5,2584.1,3.86981]
[1727297746751,1.82494247,2584.5,2584.3,3.8695]
[1727297746947,0.8287,2584.7,2584.3,3.86944]
[1727297747616,0.8287,2584.7,2584.5,3.86915]
[1727297748465,0.8287,2584.7,2584.4,3.86922]
[1727297753202,0.8287,2584.7,2584.3,3.86942]
[1727297753990,0.8287,2584.7,2584.3,7.73883]
[1727297755487,0.8287,2584.7,2584.3,3.86941]
[1727297756804,0.8287,2584.7,2584.3,7.73885]
[1727297757213,0.8287,2584.7,2584.3,3.86941]
[1727297758914,3.86919,2584.6,2584.2,3.86963]
[1727297759273,0.7996,2584.5,2584.1,3.86981]
[1727297760500,0.7996,2584.5,2584.1,7.73955]
[1727297760689,0.7996,2584.5,2584.2,3.86958]
[1727297764545,0.7996,2584.5,2584.1,4.724325]
[1727297764744,0.7996,2584.5,2584.1,3.86974]
[1727297765465,0.7996,2584.5,2584.2,3.86965]
[1727297767247,0.7996,2584.5,2584.3,3.86948]
[1727297767460,0.7996,2584.5,2584.2,3.86965]
[1727297771574,3.86911,2584.6,2584.2,3.86965]
[1727297774244,5.90116969,2584.6,2584.2,3.86965]
[1727297778340,3.86925,2584.5,2584.1,3.86975]
[1727297778573,5.17297713,2584.6,2584.1,7.73948]
[1727297778743,2.03329813,2584.5,2584.1,7.73948]
[1727297779377,2.03329813,2584.5,2584.2,3.86966]
[1727297781077,2.03237097,2584.5,2584.2,3.86966]
[1727297781287,0.8133,2584.4,2584.2,3.86966]
[1727297781842,0.8133,2584.4,2583.9,3.87]
[1727297782043,0.8133,2584.2,2583.9,3.87]
[1727297782243,0.8133,2584.2,2583.8,3.87025]
[1727297782244,4.68297,2584.2,2583.8,3.87025]
[1727297782842,0.8133,2584.2,2583.8,3.87025]
[1727297786582,0.8133,2584.2,2583.9,3.87009]
[1727297789392,0.8133,2584.2,2583.8,3.87016]
[1727297790291,0.8133,2584.2,2583.9,3.87009]
[1727297790852,0.8133,2584.2,2584.0,3.86993]
[1727297795284,2.85401863,2584.4,2584.0,3.86993]
[1727297795985,2.85401863,2584.4,2584.1,3.86981]
[1727297796388,4.15710573,2584.4,2584.1,3.86981]
[1727297798401,4.15709365,2584.4,2584.1,3.86981]
[1727297800363,4.15709365,2584.4,2584.0,3.86989]
[1727297802564,2.03200655,2584.3,2584.0,3.86989]
[1727297803506,2.0331849,2584.3,2584.0,3.86989]
[1727297807208,2.0331849,2584.3,2584.0,0.9307298]
[1727297807371,3.27222188,2584.6,2584.3,3.8695]
[1727297807372,2.0331849,2584.5,2584.3,3.8695]
[1727297807572,2.0331849,2584.5,2584.3,7.73892]
[1727297807810,0.8324,2584.6,2584.3,3.86942]
[1727297807811,2.8655849,2584.6,2584.3,3.86942]
[1727297808272,2.03328729,2584.5,2584.3,3.86942]
[1727297812577,2.03328729,2584.5,2584.2,3.86966]
[1727297813208,2.03298373,2584.5,2584.2,3.86966]
[1727297818215,2.03215685,2584.5,2584.2,3.86966]
[1727297821631,2.03228246,2584.5,2584.2,3.86966]
[1727297823246,4.7015,2584.6,2584.2,3.86966]
[1727297823398,2.0323105,2584.5,2584.2,3.86966]
[1727297823607,2.0323105,2584.5,2584.1,4.67939]
[1727297824004,5.8024189,2584.6,2584.1,4.67939]
[1727297825335,2.03185861,2584.5,2584.1,4.67939]
[1727297826498,2.03185861,2584.5,2584.0,7.73986]
[1727297826499,3.86937,2584.4,2584.0,7.73986]
[1727297826741,2.03185861,2584.4,2584.0,7.73986]
[1727297828211,2.0317109,2584.4,2584.0,7.7398]
[1727297829151,2.0317109,2584.4,2584.3,5.55994468]
[1727297829318,2.0317109,2584.5,2584.3,6.88243915]
[1727297829520,2.0317109,2584.7,2584.4,3.86937]
[1727297829920,11.22862,2584.9,2584.4,3.86937]
[1727297829921,13.2603309,2584.9,2584.4,3.86937]
[1727297830253,5.9003309,2584.9,2584.4,3.86937]
[1727297833113,5.89860109,2584.9,2584.4,3.86937]
[1727297834922,2.02998109,2584.8,2584.4,3.86937]
[1727297835331,2.02998109,2584.8,2584.6,0.8166]
[1727297835526,2.02998109,2584.9,2584.6,0.8166]
[1727297836370,2.02998109,2584.9,2584.7,3.86887]
[1727297836658,0.0369732,2585.0,2584.8,0.468547]
[1727297836840,0.0369732,2585.0,2584.9,0.8037]
[1727297837616,0.0369732,2585.0,2584.9,4.67232]
[1727297837822,0.0369732,2585.0,2584.8,3.86865]
[1727297838210,0.0369732,2585.0,2584.9,4.64322]
[1727297838416,0.0369732,2585.0,2584.9,5.66345047]
[1727297839321,0.0369732,2585.0,2584.9,4.59322]
[1727297839708,0.0369732,2585.0,2584.9,0.7246]
[1727297840818,0.0369732,2585.0,2584.9,4.59322]
[1727297842057,0.0369732,2585.0,2584.9,6.28365468]
[1727297843016,0.0369732,2585.0,2584.9,6.31718454]
[1727297843263,0.0369732,2585.0,2584.9,7.85223813]
[1727297845754,0.0369732,2585.0,2584.9,10.85223813]
[1727297846569,0.0369732,2585.8,2584.9,10.85223813]
[1727297846570,0.0369732,2585.8,2585.7,6.34085468]
[1727297850583,0.0369732,2585.8,2585.7,6.96766059]
[1727297850765,0.0369732,2585.8,2585.7,7.97437574]
[1727297851869,0.0369732,2585.8,2585.7,5.73394106]
[1727297852445,0.0369732,2585.8,2585.7,4.95094106]
[1727297857361,0.0369732,2585.8,2585.7,7.42407574]
[1727297857586,0.0369732,2585.8,2585.7,7.50088223]
[1727297857793,0.0369732,2585.8,2585.7,7.42407574]
[1727297857999,0.0369732,2585.8,2585.7,7.50088195]
[1727297858307,0.0369732,2585.8,2585.7,8.05088195]
[1727297858475,0.0369732,2585.8,2585.7,10.97407574]
[1727297860704,0.0369732,2585.8,2585.7,9.28364106]
[1727297860910,0.0369732,2585.8,2585.7,10.97407574]
[1727297861268,0.0369732,2585.8,2585.7,7.95094106]
[1727297861501,0.0369732,2585.8,2585.7,3.86742]
[1727297864088,0.0369732,2585.8,2585.7,5.55785468]
[1727297865010,0.0369732,2585.8,2585.7,6.36275468]
[1727297865827,0.0369732,2585.8,2585.7,6.91275468]
[1727297866112,0.0369732,2585.8,2585.7,9.91275468]
[1727297866284,0.0369732,2585.8,2585.7,11.29078515]
[1727297870707,0.0369732,2585.8,2585.7,1.29078515]
[1727297871012,0.0369732,2585.8,2585.7,1.69043468]
[1727297871605,0.0369732,2585.8,2585.7,5.55785468]
[1727297873092,0.0369732,2585.8,2585.7,6.10785468]
[1727297873885,0.0369732,2585.8,2585.7,6.89885468]
[1727297879589,0.0369732,2585.8,2585.7,4.65842]
[1727297879930,0.0369732,2585.8,2585.7,3.86742]
[1727297886231,0.0369732,2585.8,2585.7,5.55785468]
[1727297888570,0.0369732,2585.8,2585.7,8.13667241]
[1727297888862,0.0369732,2585.8,2585.7,9.94168104]
[1727297889246,0.0369732,2585.8,2585.7,9.9416795]
[1727297889549,0.0369732,2585.8,2585.7,12.44898255]
[1727297890647,0.0369732,2585.8,2585.7,11.63536141]
[1727297891220,0.0369732,2585.8,2585.7,12.84641341]
[1727297891524,0.0369732,2585.8,2585.7,13.66003455]
[1727297891852,0.0369732,2585.8,2585.7,13.33566821]
[1727297892452,0.0369732,2585.8,2585.7,13.66004653]
[1727297892650,0.0369732,2585.8,2585.7,17.06685711]
[1727297892868,0.0369732,2586.5,2585.7,17.06685711]
[1727297892869,0.0369732,2586.5,2586.4,3.86637]
[1727297893028,0.0369732,2586.5,2586.4,8.88577739]
[1727297893211,0.0369732,2586.5,2586.4,7.43855105]
[1727297893416,0.0369732,2586.5,2586.4,7.51528892]
[1727297893860,0.0369732,2586.5,2586.4,6.60229354]
[1727297894259,0.0369732,2586.5,2586.4,5.63354255]
[1727297894428,0.0369732,2586.5,2586.4,3.94310787]
[1727297894819,0.0369732,2586.5,2586.4,3.86637]
[1727297896530,0.8493732,2586.5,2586.4,3.86637]
[1727297896947,0.0369732,2586.5,2586.4,3.86637]
[1727297897948,0.0369732,2586.5,2586.4,4.64607]
[1727297898348,0.0369732,2586.5,2586.4,5.497328]
[1727297903467,0.7987732,2586.5,2586.4,3.86637]
[1727297904288,0.0369732,2586.5,2586.4,3.86637]
[1727297920000,0.8427732,2586.5,2586.4,3.86637]
[1727297920200,0.8427732,2586.5,2586.1,3.86675]
[1727297920389,0.8058,2586.3,2586.2,3.86662]
[1727297925107,0.8058,2586.3,2586.1,3.86675]
[1727297925298,0.8058,2586.3,2586.1,3.86672]
[1727297925498,0.8058,2586.3,2586.2,3.86667]
[1727297930759,0.8058,2586.3,2585.8,3.86726]
[1727297930979,0.8058,2586.3,2586.2,3.86667]
[1727297931135,0.8058,2586.3,2586.1,3.86682]
[1727297931954,1.27670332,2586.3,2586.1,3.86682]
[1727297932260,0.8058,2586.3,2586.1,3.86682]
[1727297932445,0.8058,2586.3,2585.9,7.73405]
[1727297932787,0.8058,2586.3,2585.9,3.867]
[1727297933341,0.7672,2586.2,2585.9,3.867]
[1727297933867,0.7672,2586.2,2585.9,7.73405]
[1727297934035,1.23058,2586.2,2585.9,3.867]
[1727297934236,0.7691,2586.1,2585.9,7.73399]
[1727297935052,0.7691,2586.1,2585.9,3.86699]
[1727297935226,0.7691,2586.1,2586.0,3.86697]
[1727297935840,0.7691,2586.1,2585.9,3.86699]
[1727297936057,0.7691,2586.1,2586.0,3.86697]
[1727297936264,0.7691,2586.1,2585.8,3.86725]
[1727297936483,0.7601,2585.9,2585.7,3.86731]
[1727297936988,0.7601,2585.9,2585.4,3.8678]
[1727297936989,0.7601,2585.8,2585.4,3.8678]
[1727297937175,0.462729,2585.7,2585.4,3.8678]
[1727297937380,0.462729,2585.7,2585.3,3.86789]
[1727297937381,0.7601,2585.6,2585.3,3.86789]
[1727297938448,0.7601,2585.6,2585.4,3.86786]
[1727297940896,0.7601,2585.6,2585.0,4.63424]
[1727297940897,0.7601,2585.6,2585.5,3.86772]
[1727297943262,0.759,2585.9,2585.7,3.86731]
[1727297943491,0.759,2585.9,2585.8,3.86727]
[1727297944932,0.759,2585.9,2585.7,3.86735]
[1727297949554,0.759,2585.9,2585.4,3.86776]
[1727297949713,0.759,2585.9,2585.5,3.8676]
[1727297950047,1.35189173,2585.9,2585.5,3.8676]
[1727297951943,1.35189173,2585.9,2585.6,3.86756]
[1727297955534,3.03565238,2585.9,2585.4,3.86774]
[1727297955757,3.03565238,2585.9,2585.3,3.868]
[1727297955758,6.35002065,2585.7,2585.3,3.868]
[1727297955957,7.04431189,2585.7,2585.3,3.868]
[1727297956628,3.17685189,2585.7,2585.3,3.868]
[1727297956829,2.48256065,2585.7,2585.3,3.868]
[1727297957343,0.8191,2585.6,2585.2,3.86805]
[1727297957532,0.8191,2585.6,2585.2,7.73614]
[1727297957731,0.8191,2585.6,2585.2,3.86805]
[1727297957927,1.84286307,2585.6,2585.2,3.86805]
[1727297958564,1.84286307,2585.6,2585.3,3.868]
[1727297959484,1.84286307,2585.6,2585.2,7.73615]
[1727297959783,4.89141307,2585.6,2585.2,3.86805]
[1727297959933,3.14907802,2585.5,2585.0,3.86834]
[1727297960126,4.6689,2585.4,2585.0,3.86834]
[1727297960571,4.6689,2585.4,2584.6,5.55276065]
[1727297960572,1.68376065,2585.1,2584.6,3.86898]
[1727297960779,1.68376065,2585.1,2584.8,3.86876]
[1727297961073,0.801,2585.2,2584.9,3.86861]
[1727297963973,0.801,2585.2,2584.8,3.86876]
[1727297965037,0.801,2585.2,2584.8,3.86868]
[1727297965361,0.801,2585.2,2584.8,7.73737]
[1727297965737,0.801,2585.2,2584.8,3.86868]
[1727297966365,0.801,2585.2,2584.8,3.86867]
[1727297967080,0.801,2585.2,2584.8,7.73735]
[1727297967432,0.801,2585.2,2584.8,7.73734]
[1727297967640,0.801,2585.2,2584.9,3.8686]
[1727297967838,0.801,2585.2,2584.8,3.86867]
[1727297969956,1.267903,2585.2,2584.8,3.86867]
[1727297970854,1.267903,2585.2,2584.9,3.8686]
[1727297971057,0.801,2585.2,2584.9,3.8686]
[1727297972454,0.801,2585.2,2584.8,4.63437]
[1727297972455,0.801,2585.2,2584.8,8.50306]
[1727297972793,0.801,2585.2,2584.9,3.86861]
[1727297977488,0.801,2585.2,2585.0,3.86838]
[1727297978417,0.801,2585.2,2584.9,3.86861]
[1727297980414,0.801,2585.2,2584.9,3.86852]
[1727297980620,5.55156065,2585.5,2585.0,3.86842]
[1727297980782,0.7941,2585.4,2585.0,3.86842]
[1727297981313,0.7941,2585.4,2585.2,3.86808]
[1727297981997,0.7941,2585.4,2585.2,7.73613]
[1727297982208,0.7941,2585.4,2585.2,3.86805]
[1727297986519,3.86743,2585.7,2585.2,3.86803]
[1727297986520,0.7921,2585.6,2585.2,3.86803]
[1727297987442,0.7921,2585.6,2585.3,3.86801]
[1727297990383,4.65828,2585.8,2585.4,3.86781]
[1727297990585,0.791,2585.8,2585.4,3.86781]
[1727297996528,3.86719,2585.9,2585.5,3.86764]
[1727297996529,0.7879,2585.9,2585.5,3.86764]
[1727297998530,0.7943,2586.1,2585.6,3.86743]
[1727297998720,7.36,2586.3,2585.6,3.86743]
[1727297998721,2.82134789,2586.3,2585.7,2.51186065]
[1727297999037,7.3969732,2586.5,2586.0,4.68387]
[1727297999038,8.1914732,2586.5,2586.0,4.68387]
[1727297999192,8.1914732,2586.5,2586.1,3.86681]
[1727298000040,12.0577132,2586.5,2586.1,3.86681]
[1727298000336,4.6977132,2586.5,2586.1,3.86681]
[1727298000641,4.6977132,2586.5,2586.3,3.8664]
[1727298000642,0.0369732,2586.5,2586.3,3.8664]
[1727298000789,0.0369732,2586.5,2586.3,7.73284]
[1727298001240,0.0369732,2586.5,2586.4,3.86637]
[1727298002541,0.0369732,2586.5,2586.4,4.62337]
[1727298003402,0.0369732,2586.5,2586.3,3.8664]
[1727298004212,0.0369732,2586.5,2586.2,0.7891]
[1727298004417,0.0369732,2586.5,2586.2,3.86667]
[1727298004735,0.0369732,2586.5,2586.3,3.8665]
[1727298005335,0.0369732,2586.5,2586.4,3.86637]
[1727298005492,0.0369732,2586.5,2586.4,3.94313927]
[1727298005893,0.0369732,2586.5,2586.4,4.72953927]
[1727298006140,0.0369732,2586.5,2586.4,4.65277]
[1727298010446,0.0369732,2586.5,2586.4,3.86637]
[1727298010612,0.0369732,2586.5,2586.4,4.7986498]
[1727298013449,0.0369732,2586.5,2586.4,3.86637]
[1727298013772,0.0369732,2586.5,2586.3,3.86652]
[1727298014852,0.0369732,2586.5,2586.3,3.86644]
[1727298015554,5.55016065,2586.4,2585.8,3.86715]
[1727298015708,5.55016065,2586.4,2585.9,3.86712]
[1727298015709,4.66853,2586.3,2585.9,3.86712]
[1727298016110,0.802,2586.3,2585.6,3.86748]
[1727298016352,0.802,2586.3,2585.8,3.86724]
[1727298016643,0.802,2586.3,2585.7,3.86732]
[1727298016644,0.802,2586.1,2585.7,3.86732]
[1727298017150,4.76556657,2586.1,2585.6,3.86756]
[1727298017311,4.76556657,2586.1,2585.6,3.86748]
[1727298017695,4.76556657,2586.1,2585.6,3.86747]
[1727298017696,0.0343943,2586.0,2585.6,3.86747]
[1727298017825,4.66889,2586.1,2585.6,3.86747]
[1727298018151,3.86697,2586.0,2585.6,3.86747]
[1727298018348,4.66883,2586.1,2585.6,3.86747]
[1727298018516,5.69075307,2586.1,2585.6,3.86747]
[1727298019212,5.69075307,2586.1,2585.6,7.73497]
[1727298019951,5.69075307,2586.1,2585.6,3.86747]
[1727298020459,0.7793,2585.9,2585.5,3.86772]
[1727298021181,0.87598657,2585.9,2585.5,3.86764]
[1727298021460,0.7793,2585.9,2585.5,3.86764]
[1727298021860,0.87598695,2585.9,2585.5,3.86764]
[1727298022022,4.64643,2585.9,2585.5,3.86764]
[1727298022358,1.79900206,2585.9,2585.5,3.86764]
[1727298023130,5.66615206,2585.9,2585.5,3.86764]
[1727298023636,5.66615206,2585.9,2585.4,3.86783]
[1727298024390,5.66615206,2585.9,2585.1,0.8121]
[1727298024391,1.79900206,2585.9,2585.5,3.86764]
[1727298024525,1.79900206,2585.9,2585.5,7.73529]
[1727298024729,0.73497427,2585.8,2585.5,3.86764]
[1727298025136,0.73497427,2585.8,2585.5,7.73527]
[1727298025363,0.73497427,2585.8,2585.5,3.86763]
[1727298026465,1.79900206,2585.9,2585.5,3.86761]
[1727298026666,1.79900206,2585.9,2585.6,3.86757]
[1727298026866,1.79900206,2585.9,2585.5,3.86761]
[1727298027349,3.8673,2585.8,2585.3,3.86797]
[1727298027556,0.831,2585.6,2585.3,3.86789]
[1727298028581,0.8207,2585.4,2584.8,3.86877]
[1727298028785,1.68376065,2585.3,2584.9,3.8686]
[1727298028935,1.68376065,2585.3,2585.0,3.86846]
[1727298029132,2.32098671,2585.3,2585.0,3.86846]
[1727298029632,0.8207,2585.2,2584.8,3.86875]
[1727298030093,0.8207,2585.2,2584.9,3.86854]
[1727298033357,0.8207,2585.2,2584.9,7.73706]
[1727298033776,0.8207,2585.2,2584.9,3.86852]
[1727298033995,0.8207,2585.2,2584.9,7.73705]
[1727298034655,0.8207,2585.2,2584.9,3.86852]
[1727298035050,1.52165667,2585.2,2584.9,3.86852]
[1727298035388,1.52165667,2585.2,2584.8,3.86876]
[1727298035758,5.48654048,2585.2,2584.8,3.86876]
[1727298036895,0.8303,2585.0,2584.5,3.86913]
[1727298037057,5.55238065,2584.9,2584.5,3.86913]
[1727298037256,1.78048337,2584.9,2584.5,3.86913]
[1727298037472,1.68376065,2584.7,2584.3,3.86941]
[1727298037790,0.8226,2584.6,2584.3,3.86941]
[1727298039602,0.8226,2584.6,2584.3,7.73885]
[1727298041308,0.8226,2584.6,2584.3,3.86941]
[1727298041884,0.91933301,2584.6,2584.3,3.86941]
[1727298042294,1.37875433,2584.6,2584.3,3.86941]
[1727298042511,1.68376065,2584.5,2584.1,3.8697]
[1727298042904,0.7558,2584.3,2584.1,3.8697]
[1727298044336,0.7558,2584.3,2583.9,3.87004]
[1727298044337,0.7558,2584.3,2584.0,3.86995]
[1727298046101,0.7558,2584.3,2584.1,3.8698]
[1727298046811,0.7558,2584.3,2584.0,3.86996]
[1727298048097,0.7558,2584.3,2584.1,3.8698]
[1727298049337,0.7558,2584.3,2584.0,3.86996]
[1727298050302,0.7558,2584.3,2584.0,7.73992]
[1727298052301,0.7558,2584.3,2584.0,3.86996]
[1727298052502,0.7558,2584.3,2584.0,3.8699]
[1727298052831,0.7558,2584.3,2584.0,3.86988]
[1727298053037,0.7558,2584.3,2584.1,3.8698]
[1727298054275,7.36,2584.8,2584.2,0.8183]
[1727298054430,0.7652,2584.7,2584.3,3.86944]
[1727298054652,7.36,2584.8,2584.5,3.8692]